bitfinex/quotes_SOLUSD_20240605
["timestamp","ask_amount","ask_price","bid_price","bid_amount"]
[1717623200696,7.2,173.07,173.06,45.0]
[1717623218308,7.2,173.07,173.06,84.51151424]
[1717623218510,7.2,173.07,173.06,45.0]
[1717623218910,7.2,173.07,173.06,84.51151424]
[1717623219519,7.2,173.07,173.06,45.0]
[1717623219819,7.2,173.07,173.06,84.51151424]
[1717623220610,7.2,173.07,173.06,45.0]
[1717623220915,7.2,173.07,173.06,84.51151424]
[1717623221127,7.2,173.07,173.06,45.0]
[1717623221590,7.2,173.07,173.06,84.51151424]
[1717623222391,7.2,173.07,173.06,45.0]
[1717623222586,7.2,173.07,173.06,84.51151424]
[1717623222815,7.2,173.07,173.06,45.0]
[1717623223193,7.2,173.07,173.06,84.51151424]
[1717623224298,7.2,173.07,173.06,90.28451424]
[1717623224798,7.2,173.07,173.06,50.773]
[1717623225001,7.2,173.07,173.06,84.51151424]
[1717623225204,7.2,173.08,173.07,39.51151424]
[1717623225390,7.2,173.08,173.07,84.51151424]
[1717623226113,7.2,173.08,173.07,90.28451424]
[1717623226417,7.2,173.08,173.07,84.51151424]
[1717623226721,7.2,173.08,173.07,45.0]
[1717623226895,7.2,173.08,173.07,84.51151424]
[1717623227094,7.2,173.08,173.07,45.0]
[1717623227909,7.2,173.08,173.07,84.51151424]
[1717623228105,7.2,173.08,173.07,45.0]
[1717623228310,7.2,173.08,173.07,84.51151424]
[1717623228722,7.2,173.08,173.07,90.28451424]
[1717623229018,7.2,173.08,173.07,50.773]
[1717623229424,7.2,173.08,173.07,90.28451424]
[1717623229725,7.2,173.08,173.07,50.773]
[1717623234022,8.2517,173.15,173.07,50.773]
[1717623234207,20.0,173.14,173.08,45.0]
[1717623234407,7.2,173.09,173.08,45.0]
[1717623242419,7.2,173.09,173.08,45.0]
[1717623243537,7.2,173.09,173.08,80.33431554]
[1717623243901,7.2,173.09,173.08,45.0]
[1717623244558,6.1149,173.15,173.08,50.773]
[1717623244835,7.2,173.09,173.08,86.10731554]
[1717623245010,7.2,173.09,173.08,50.773]
[1717623245423,7.2,173.09,173.08,86.10731554]
[1717623246626,7.2,173.09,173.08,50.773]
[1717623246817,7.2,173.09,173.08,86.10731554]
[1717623247132,7.2,173.09,173.08,50.773]
[1717623247510,7.2,173.09,173.08,86.10731554]
[1717623247714,7.2,173.09,173.08,50.773]
[1717623248021,7.2,173.09,173.08,86.10731554]
[1717623248205,7.2,173.09,173.08,50.773]
[1717623249003,7.2,173.09,173.08,86.10731554]
[1717623249315,7.2,173.09,173.08,50.773]
[1717623249517,7.2,173.09,173.08,86.10731554]
[1717623250311,7.2,173.09,173.08,50.773]
[1717623250906,7.2,173.09,173.08,86.10731554]
[1717623251109,7.2,173.09,173.08,50.773]
[1717623251509,7.2,173.09,173.08,86.10731554]
[1717623251919,7.2,173.09,173.08,50.773]
[1717623252621,7.2,173.09,173.08,86.10731554]
[1717623252824,7.2,173.09,173.08,50.773]
[1717623253216,20.0,173.14,173.08,50.773]
[1717623253409,7.2,173.09,173.08,50.773]
[1717623254211,7.2,173.09,173.08,86.10731554]
[1717623254412,7.2,173.09,173.08,50.773]
[1717623254924,7.2,173.09,173.08,86.10731554]
[1717623255127,7.2,173.09,173.08,53.5530025]
[1717623255331,7.2,173.09,173.08,50.773]
[1717623255529,7.2,173.09,173.08,53.5530025]
[1717623255831,7.2,173.09,173.08,50.773]
[1717623256406,7.2,173.09,173.08,53.5530025]
[1717623256627,7.2,173.09,173.08,50.773]
[1717623257017,7.2,173.09,173.08,53.5530025]
[1717623257725,7.2,173.09,173.08,50.773]
[1717623257933,7.2,173.09,173.08,53.5530025]
[1717623259012,7.2,173.09,173.08,50.773]
[1717623259517,7.2,173.09,173.08,53.5530025]
[1717623260329,7.2,173.09,173.08,50.773]
[1717623260716,7.2,173.09,173.08,53.5530025]
[1717623260916,7.2,173.09,173.08,50.773]
[1717623261335,7.2,173.09,173.08,53.5530025]
[1717623261535,7.2,173.09,173.08,50.773]
[1717623262431,7.2,173.09,173.08,53.5530025]
[1717623262634,7.2,173.09,173.08,50.773]
[1717623264134,7.2,173.09,173.08,53.5530025]
[1717623264659,7.2,173.09,173.08,50.773]
[1717623264872,7.2,173.09,173.08,53.5530025]
[1717623265151,7.2,173.09,173.08,50.773]
[1717623265356,7.2,173.09,173.08,53.5530025]
[1717623265542,7.2,173.09,173.08,50.773]
[1717623265738,7.2,173.09,173.08,53.5530025]
[1717623265936,7.2,173.09,173.08,50.773]
[1717623266834,20.0,173.14,173.1,2.7800025]
[1717623267027,2.1369,173.15,173.08,50.773]
[1717623267028,7.2,173.11,173.08,50.773]
[1717623267234,7.2,173.09,173.08,53.5530025]
[1717623267649,7.2,173.09,173.08,50.773]
[1717623268659,7.2,173.1,173.08,50.773]
[1717623269048,7.2,173.1,173.08,45.0]
[1717623269447,7.2,173.1,173.09,5.773]
[1717623272238,7.2,173.1,173.09,50.773]
[1717623272651,7.2,173.1,173.09,45.0]
[1717623272957,7.2,173.1,173.09,50.773]
[1717623280271,34.9614,173.16,173.12,52.93357863]
[1717623280565,34.9614,173.16,173.13,45.0]
[1717623280769,7.2,173.14,173.13,45.0]
[1717623288060,10.7283,173.21,173.13,92.16057863]
[1717623288399,7.2,173.14,173.13,45.0]
[1717623288559,7.2,173.14,173.13,92.16057863]
[1717623288953,7.2,173.14,173.13,45.0]
[1717623289166,7.2,173.14,173.13,92.16057863]
[1717623289580,7.2,173.14,173.13,45.0]
[1717623289785,7.2,173.14,173.13,92.16057863]
[1717623290291,7.2,173.14,173.13,45.0]
[1717623290784,7.2,173.14,173.13,92.16057863]
[1717623291289,7.2,173.14,173.13,50.773]
[1717623291465,7.2,173.14,173.13,45.0]
[1717623291657,7.2,173.14,173.13,92.16057863]
[1717623291857,7.2,173.14,173.13,45.0]
[1717623292296,7.2,173.14,173.13,92.16057863]
[1717623293159,7.2,173.14,173.13,50.773]
[1717623293479,7.2,173.14,173.13,83.85829068]
[1717623293980,7.2,173.14,173.13,45.0]
[1717623294159,7.2,173.14,173.13,83.85829068]
[1717623294362,7.2,173.14,173.13,45.0]
[1717623294588,7.2,173.14,173.13,83.85829068]
[1717623294788,7.2,173.14,173.13,50.773]
[1717623295166,7.2,173.14,173.13,89.63129068]
[1717623295361,7.2,173.14,173.13,50.773]
[1717623296089,7.2,173.14,173.13,89.63129068]
[1717623296398,7.2,173.14,173.13,50.773]
[1717623297466,7.2,173.14,173.13,45.0]
[1717623297668,7.2,173.14,173.13,89.63129068]
[1717623298066,7.2,173.14,173.13,50.773]
[1717623298270,7.2,173.14,173.13,89.63129068]
[1717623298585,7.2,173.14,173.13,83.85829068]
[1717623298785,7.2,173.14,173.13,45.0]
[1717623299481,7.2,173.14,173.13,83.85829068]
[1717623299680,7.2,173.14,173.13,45.0]
[1717623299886,7.2,173.14,173.13,83.85829068]
[1717623300281,7.2,173.14,173.13,45.0]
[1717623301893,7.2,173.14,173.13,50.773]
[1717623302890,7.2,173.14,173.13,89.63129068]
[1717623303393,7.2,173.14,173.13,50.773]
[1717623303794,7.2,173.14,173.13,89.63129068]
[1717623304991,7.2,173.14,173.13,50.773]
[1717623305592,7.2,173.14,173.13,89.63129068]
[1717623305901,7.2,173.14,173.13,50.773]
[1717623306085,7.2,173.14,173.13,74.59033028]
[1717623306478,7.2,173.14,173.13,50.773]
[1717623306676,7.2,173.14,173.13,74.59033028]
[1717623306893,7.2,173.14,173.13,50.773]
[1717623307096,7.2,173.14,173.13,74.59033028]
[1717623307304,7.2,173.14,173.13,50.773]
[1717623308611,7.2,173.14,173.13,68.81733028]
[1717623308813,7.2,173.14,173.13,74.59033028]
[1717623309117,7.2,173.14,173.13,50.773]
[1717623309484,7.2,173.14,173.13,74.59033028]
[1717623309685,7.2,173.14,173.13,50.773]
[1717623309906,7.2,173.14,173.13,68.81733028]
[1717623310092,7.2,173.14,173.13,45.0]
[1717623310296,7.2,173.14,173.13,68.81733028]
[1717623310798,7.2,173.14,173.13,45.0]
[1717623311897,7.2,173.14,173.13,68.81733028]
[1717623312096,7.2,173.14,173.13,45.0]
[1717623312297,7.2,173.14,173.13,68.81733028]
[1717623312496,7.2,173.14,173.13,45.0]
[1717623312698,7.2,173.14,173.13,68.81733028]
[1717623313201,7.2,173.14,173.13,45.0]
[1717623313994,7.2,173.14,173.12,50.773]
[1717623314193,7.2,173.13,173.12,50.773]
[1717623316587,7.2,173.13,173.12,45.0]
[1717623316790,7.2,173.13,173.11,45.0]
[1717623316992,7.2,173.12,173.1,68.81733028]
[1717623317201,28.8,173.16,173.11,5.773]
[1717623317500,28.8,173.16,173.12,45.0]
[1717623317805,7.2,173.13,173.09,8.66577647]
[1717623318110,28.8,173.16,173.09,8.66577647]
[1717623318111,7.2,173.1,173.09,8.66577647]
[1717623318607,7.2,173.1,173.08,8.66577647]
[1717623318808,30.9368,173.16,173.09,5.773]
[1717623319006,7.2,173.1,173.09,14.43877647]
[1717623319307,7.2,173.1,173.09,50.773]
[1717623319513,7.2,173.1,173.09,59.43877647]
[1717623323906,7.2,173.1,173.09,59.43877647]
[1717623328693,7.2,173.1,173.09,59.43963943]
[1717623329922,7.2,173.1,173.09,50.773]
[1717623330515,7.2,173.1,173.09,59.43963943]
[1717623331016,30.9367,173.16,173.09,59.43963943]
[1717623331216,20.0,173.15,173.1,50.773]
[1717623331395,7.2,173.11,173.1,80.21911268]
[1717623331593,7.2,173.11,173.1,50.773]
[1717623331821,7.2,173.11,173.09,8.66663943]
[1717623331822,22.7024,173.1,173.09,8.66663943]
[1717623332016,2.138,173.06,172.96,6.6327]
[1717623332219,7.2,172.97,172.96,6.6327]
[1717623332417,7.2,172.97,172.96,36.07881268]
[1717623332604,7.2,172.97,172.96,6.6327]
[1717623332813,2.3079,173.07,172.96,6.6327]
[1717623333012,7.2,172.98,172.96,41.85181268]
[1717623333324,7.2,172.98,172.96,6.6327]
[1717623333518,7.2,172.98,172.97,45.0]
[1717623336205,7.2,172.98,172.97,74.44611268]
[1717623336404,7.2,172.98,172.97,45.0]
[1717623336620,7.2,172.98,172.97,74.44611268]
[1717623336799,7.2,172.98,172.97,45.0]
[1717623337001,7.2,172.98,172.97,74.44611268]
[1717623337193,7.2,172.98,172.97,45.0]
[1717623339313,9.5079,173.07,172.97,45.0]
[1717623339524,20.0,173.06,172.97,45.0]
[1717623340320,22.1379,173.06,172.97,45.0]
[1717623341602,22.1379,173.06,172.97,74.44611268]
[1717623342310,22.1379,173.06,172.97,45.0]
[1717623342710,22.1379,173.06,172.97,74.44611268]
[1717623342908,20.0,173.06,172.97,45.0]
[1717623343115,20.0,173.06,172.97,63.77039685]
[1717623343499,20.0,173.06,172.97,45.0]
[1717623343699,20.0,173.06,172.97,63.77039685]
[1717623344003,20.0,173.06,172.97,45.0]
[1717623344724,0.17,173.05,172.97,45.0]
[1717623349003,7.2,172.98,172.97,45.0]
[1717623349614,7.2,172.98,172.95,18.77039685]
[1717623349814,0.17,173.05,172.96,38.77039685]
[1717623350018,7.2,172.97,172.96,38.77039685]
[1717623351107,7.2,172.97,172.96,18.77039685]
[1717623351301,7.2,172.97,172.93,6.5504]
[1717623351503,7.2,172.97,172.94,20.0]
[1717623351721,7.2,172.96,172.94,20.0]
[1717623352115,7.2,172.96,172.95,18.77039685]
[1717623352428,7.2,172.96,172.95,38.77039685]
[1717623352638,7.2,172.96,172.95,20.0]
[1717623352923,7.2,172.96,172.95,18.77039685]
[1717623353115,7.2,172.96,172.95,20.0]
[1717623353705,7.2,172.96,172.94,20.0]
[1717623353920,7.2,172.95,172.94,20.0]
[1717623354097,7.2,172.95,172.94,38.77039685]
[1717623354300,7.2,172.95,172.94,20.0]
[1717623354502,7.2,172.95,172.94,38.77039685]
[1717623354705,7.2,172.95,172.94,20.0]
[1717623354933,7.2,172.95,172.94,38.77039685]
[1717623355138,7.2,172.95,172.94,20.0]
[1717623355507,7.2,172.95,172.94,38.77039685]
[1717623355701,7.2,172.96,172.94,20.0]
[1717623356300,7.2,172.96,172.95,54.08097135]
[1717623356513,7.2,172.96,172.95,74.08097135]
[1717623356713,7.2,172.96,172.95,20.0]
[1717623357129,7.2,172.96,172.94,20.0]
[1717623357301,7.2,172.96,172.95,54.08097135]
[1717623357734,7.2,172.96,172.95,20.0]
[1717623357917,7.2,172.96,172.95,74.08097135]
[1717623358235,7.2,172.96,172.95,20.0]
[1717623358405,7.2,172.96,172.94,20.0]
[1717623358908,7.2,172.96,172.95,54.08097135]
[1717623359114,7.2,172.96,172.95,74.08097135]
[1717623360114,7.2,172.96,172.95,20.0]
[1717623360312,7.2,172.96,172.95,54.08097135]
[1717623360531,7.2,172.96,172.95,74.08097135]
[1717623361025,7.2,172.96,172.95,20.0]
[1717623361229,7.2,172.96,172.95,54.08097135]
[1717623361413,7.2,172.96,172.95,74.08097135]
[1717623362105,7.2,172.96,172.95,20.0]
[1717623362324,7.2,172.96,172.95,54.08097135]
[1717623362514,7.2,172.96,172.95,20.0]
[1717623363005,6.3017,173.05,172.95,20.0]
[1717623363222,7.2,172.96,172.94,20.0]
[1717623363420,7.2,172.96,172.93,26.4585]
[1717623363835,7.2,172.96,172.95,54.08097135]
[1717623364127,7.2,172.96,172.95,20.0]
[1717623364713,7.2,172.96,172.94,20.0]
[1717623365029,7.2,172.96,172.95,54.08097135]
[1717623365336,7.2,172.96,172.95,74.08097135]
[1717623365632,7.2,172.96,172.95,20.0]
[1717623365925,7.2,172.96,172.95,54.08097135]
[1717623366129,7.2,172.96,172.95,20.0]
[1717623366725,7.2,172.96,172.94,20.0]
[1717623367035,7.2,172.96,172.95,54.08097135]
[1717623367341,7.2,172.96,172.95,74.08097135]
[1717623367511,7.2,172.96,172.95,20.0]
[1717623368211,7.2,172.96,172.95,4.76701163]
[1717623368418,7.2,172.96,172.92,32.1816]
[1717623368724,20.0,173.04,172.92,32.1816]
[1717623368725,7.2,172.97,172.93,0.17]
[1717623369110,7.2,172.97,172.95,4.76701163]
[1717623369304,7.2,172.97,172.96,4.76701163]
[1717623369507,7.2,172.97,172.95,4.76701163]
[1717623369832,7.2,172.97,172.93,20.17]
[1717623370034,7.2,172.97,172.95,4.76701163]
[1717623370407,7.2,172.97,172.96,4.76701163]
[1717623370805,7.2,172.97,172.93,20.17]
[1717623371411,7.2,172.97,172.95,4.76701163]
[1717623371607,7.2,172.97,172.93,20.17]
[1717623371813,7.2,172.97,172.96,4.76701163]
[1717623372214,7.2,172.97,172.93,20.17]
[1717623372415,7.2,172.97,172.96,4.76701163]
[1717623374210,7.2,172.97,172.93,20.17]
[1717623374405,7.2,172.97,172.96,4.76701163]
[1717623374606,7.2,172.97,172.93,20.17]
[1717623375017,7.2,172.97,172.96,4.76701163]
[1717623375217,7.2,172.97,172.93,20.17]
[1717623375427,16.3122,173.02,172.93,20.0]
[1717623375640,7.2,172.94,172.93,24.76701163]
[1717623376146,7.2,172.94,172.93,20.0]
[1717623377009,7.2,172.94,172.93,24.76701163]
[1717623377411,7.2,172.94,172.93,20.0]
[1717623377625,7.2,172.94,172.93,4.76701163]
[1717623377816,7.2,172.94,172.92,25.773]
[1717623378017,28.8,172.98,172.92,25.773]
[1717623378630,28.8,172.98,172.95,4.76701163]
[1717623379016,28.8,172.98,172.92,25.773]
[1717623379332,7.2,172.94,172.93,4.76701163]
[1717623379634,7.2,172.94,172.92,25.773]
[1717623380219,7.2,172.94,172.93,4.76701163]
[1717623380734,7.2,172.94,172.92,25.773]
[1717623381513,7.2,172.94,172.93,52.91380109]
[1717623381837,7.2,172.94,172.93,72.91380109]
[1717623382220,7.2,172.94,172.93,20.0]
[1717623382434,7.2,172.94,172.93,52.91380109]
[1717623382640,7.2,172.94,172.93,72.91380109]
[1717623382814,7.2,172.94,172.93,20.0]
[1717623383135,7.2,172.94,172.93,72.91380109]
[1717623383318,7.2,172.94,172.93,20.0]
[1717623383511,7.2,172.94,172.93,52.91380109]
[1717623383714,7.2,172.94,172.93,72.91380109]
[1717623384236,7.2,172.94,172.93,20.0]
[1717623384416,7.2,172.94,172.93,52.91380109]
[1717623384619,7.2,172.94,172.93,72.91380109]
[1717623385439,7.2,172.94,172.93,20.0]
[1717623385648,7.2,172.94,172.93,52.91380109]
[1717623385807,7.2,172.94,172.93,72.91380109]
[1717623386011,7.2,172.96,172.95,52.91380109]
[1717623386209,7.2,172.96,172.93,25.773]
[1717623386410,7.2,172.96,172.95,52.91380109]
[1717623386831,7.2,172.96,172.93,20.0]
[1717623387036,7.2,172.96,172.95,52.91380109]
[1717623387420,7.2,172.96,172.92,26.1295]
[1717623388340,7.2,172.97,172.93,12.3233]
[1717623388522,20.0,173.04,172.96,52.91380109]
[1717623388715,24.4546,173.06,172.94,5.773]
[1717623388716,7.2,172.97,172.94,5.773]
[1717623388909,7.2,172.97,172.96,52.91380109]
[1717623389315,7.2,172.97,172.93,6.5503]
[1717623389537,7.2,172.96,172.95,52.91380109]
[1717623389834,7.2,172.96,172.93,6.5503]
[1717623390131,7.2,172.96,172.95,52.91380109]
[1717623391117,7.2,172.96,172.93,6.5503]
[1717623391424,7.2,172.96,172.94,20.0]
[1717623391735,7.2,172.96,172.95,52.91380109]
[1717623391957,7.2,172.96,172.94,20.0]
[1717623392134,7.2,172.96,172.95,52.91380109]
[1717623392621,22.1381,173.05,172.98,52.91380109]
[1717623392822,7.2,172.99,172.94,20.0]
[1717623393027,7.2,172.96,172.94,20.0]
[1717623395355,7.2,172.96,172.93,6.5503]
[1717623395651,7.2,172.96,172.94,20.0]
[1717623397054,22.3166,173.06,172.95,0.17]
[1717623397346,22.3166,173.06,172.95,0.34]
[1717623397347,7.2,172.99,172.95,0.34]
[1717623397532,6.089,173.06,172.95,6.5049]
[1717623397735,7.2,173.0,172.96,26.4747]
[1717623397938,7.2,173.0,172.97,0.17]
[1717623398146,6.089,173.06,172.97,0.17]
[1717623400453,7.2,173.01,172.99,20.34]
[1717623401256,7.2,173.01,172.99,32.3115]
[1717623401436,6.2965,173.1,172.99,32.3115]
[1717623401638,7.2,173.03,172.99,32.3115]
[1717623402740,28.8,173.07,172.99,32.3115]
[1717623403355,7.2,173.03,172.99,26.113]
[1717623403551,7.2,173.03,173.0,6.0159]
[1717623403852,2.1371,173.13,173.01,26.3559]
[1717623404060,7.2,173.05,173.02,6.1836]
[1717623404260,8.3565,173.14,173.03,20.17]
[1717623404428,7.2,173.06,173.03,0.17]
[1717623404636,7.2,173.06,173.03,20.17]
[1717623405861,2.1371,173.13,173.04,6.4982]
[1717623406038,7.2,173.05,173.04,6.4982]
[1717623406237,2.1371,173.13,173.04,6.4982]
[1717623406441,7.2,173.06,173.04,6.4982]
[1717623406641,8.3565,173.14,173.05,5.773]
[1717623406955,8.3565,173.14,173.04,6.4982]
[1717623406956,6.2195,173.14,173.04,6.4982]
[1717623407255,6.2195,173.14,173.05,20.17]
[1717623407560,7.2,173.06,173.05,20.17]
[1717623408459,7.2,173.07,173.05,20.17]
[1717623409251,6.2195,173.14,173.05,20.17]
[1717623409433,7.2,173.08,173.05,20.17]
[1717623409633,7.2,173.07,173.05,26.4081]
[1717623410254,6.2195,173.14,173.05,26.4081]
[1717623410446,7.2,173.07,173.05,26.4081]
[1717623410936,8.3565,173.14,173.05,20.0]
[1717623411135,7.2,173.06,173.04,20.0]
[1717623411336,7.2,173.06,173.05,5.773]
[1717623411531,7.2,173.06,173.05,25.773]
[1717623411757,7.2,173.06,173.05,20.0]
[1717623412157,7.2,173.06,173.04,20.0]
[1717623412454,6.2195,173.14,173.04,20.0]
[1717623412759,7.2,173.06,173.04,20.0]
[1717623412941,6.2195,173.14,173.05,0.17]
[1717623413263,7.2,173.06,173.05,0.17]
[1717623414163,6.2195,173.14,173.05,0.17]
[1717623414459,7.2,173.06,173.05,0.17]
[1717623414659,7.2,173.06,173.04,26.4221]
[1717623414864,7.2,173.05,173.04,20.0]
[1717623415164,7.2,173.05,173.04,0.17]
[1717623415462,8.3565,173.14,173.04,20.17]
[1717623415659,7.2,173.05,173.04,20.17]
[1717623415840,6.2195,173.14,173.04,20.17]
[1717623416042,6.2195,173.14,173.04,0.17]
[1717623416240,7.2,173.05,173.04,20.17]
[1717623416435,6.2195,173.14,173.04,20.0]
[1717623416750,7.2,173.05,173.03,0.17]
[1717623416947,7.2,173.05,173.03,32.5351]
[1717623417152,7.2,173.06,173.03,6.7621]
[1717623417351,7.2,173.06,173.04,20.0]
[1717623417560,6.2195,173.14,173.04,20.0]
[1717623417937,7.2,173.06,173.04,20.0]
[1717623418142,7.2,173.06,173.04,26.4221]
[1717623418659,6.2195,173.14,173.04,26.4221]
[1717623418862,7.2,173.06,173.04,26.4221]
[1717623419075,6.2195,173.14,173.04,32.1951]
[1717623419559,7.2,173.07,173.04,32.1951]
[1717623420363,6.2195,173.14,173.04,32.1951]
[1717623420565,7.2,173.07,173.04,32.1951]
[1717623421147,7.2,173.06,173.04,26.4221]
[1717623422264,6.2195,173.14,173.04,26.4221]
[1717623422466,7.2,173.06,173.04,26.4221]
[1717623423664,6.2195,173.14,173.04,26.4221]
[1717623423869,7.2,173.06,173.05,0.17]
[1717623424161,7.2,173.07,173.05,0.17]
[1717623424462,7.2,173.07,173.05,6.1963]
[1717623426947,15.4799,173.19,173.07,5.773]
[1717623427152,15.4799,173.19,173.1,6.0263]
[1717623427153,7.2,173.13,173.1,6.0263]
[1717623427459,7.2,173.13,173.11,20.0]
[1717623432053,17.4781,173.24,173.12,5.773]
[1717623432255,7.2,173.16,173.13,32.7666]
[1717623432662,7.2,173.15,173.13,32.7666]
[1717623433063,25.4114,173.26,173.13,32.7666]
[1717623433064,8.3269,173.26,173.14,6.463]
[1717623433361,8.3269,173.26,173.15,20.34]
[1717623433362,7.2,173.17,173.15,20.34]
[1717623433558,7.2,173.18,173.15,20.34]
[1717623433780,7.2,173.17,173.15,20.34]
[1717623434650,28.8,173.25,173.15,26.803]
[1717623434853,7.2,173.17,173.15,26.803]
[1717623435376,28.8,173.25,173.15,26.803]
[1717623435559,7.2,173.18,173.15,26.803]
[1717623437666,28.8,173.25,173.15,26.803]
[1717623437873,7.2,173.18,173.15,26.803]
[1717623439372,6.1914,173.26,173.16,6.463]
[1717623439576,7.2,173.18,173.17,0.17]
[1717623440080,7.2,173.19,173.17,0.17]
[1717623440881,7.2,173.19,173.16,6.463]
[1717623441079,28.8,173.25,173.15,26.113]
[1717623441080,7.2,173.18,173.15,26.113]
[1717623441388,7.2,173.18,173.16,0.17]
[1717623441761,6.1914,173.26,173.16,6.633]
[1717623441977,7.2,173.18,173.16,0.17]
[1717623446891,7.2,173.18,173.16,6.3243]
[1717623447091,7.2,173.19,173.17,20.0]
[1717623448060,7.2,173.21,173.18,0.17]
[1717623450472,28.8,173.25,173.18,0.17]
[1717623453593,7.2,173.2,173.18,0.17]
[1717623453784,7.2,173.2,173.18,5.943]
[1717623453986,6.7,173.2,173.18,0.17]
[1717623454790,2.1354,173.27,173.18,0.17]
[1717623455086,7.2,173.2,173.18,0.17]
[1717623455485,7.2,173.2,173.18,6.7782]
[1717623455688,7.2,173.2,173.19,5.773]
[1717623456895,28.8,173.25,173.19,5.773]
[1717623457079,2.1354,173.27,173.18,6.7782]
[1717623457380,7.2,173.2,173.19,5.773]
[1717623466499,7.2,173.2,173.18,5.943]
[1717623468489,7.2,173.2,173.17,20.0]
[1717623470794,7.2,173.19,173.17,20.17]
[1717623471302,7.2,173.19,173.17,0.17]
[1717623471508,7.2,173.19,173.17,20.17]
[1717623472298,7.2,173.19,173.18,5.773]
[1717623472893,7.2,173.19,173.17,20.0]
[1717623473094,7.2,173.19,173.18,5.773]
[1717623473297,7.2,173.19,173.17,20.0]
[1717623473601,7.2,173.19,173.16,0.17]
[1717623473802,7.2,173.19,173.16,12.182]
[1717623474002,7.2,173.19,173.17,20.0]
[1717623475710,2.1353,173.28,173.18,6.409]
[1717623476015,7.2,173.22,173.18,12.182]
[1717623477215,7.2,173.21,173.18,12.182]
[1717623477422,28.8,173.25,173.18,12.182]
[1717623477708,2.1354,173.27,173.18,12.182]
[1717623477931,7.2,173.21,173.18,12.182]
[1717623480424,2.1354,173.27,173.18,12.182]
[1717623480623,7.2,173.21,173.18,12.182]
[1717623482521,7.2,173.2,173.18,12.182]
[1717623484100,7.2,173.25,173.18,12.182]
[1717623484404,28.8,173.25,173.18,12.182]
[1717623484614,2.1355,173.26,173.18,12.182]
[1717623484818,7.2,173.21,173.18,12.182]
[1717623488827,2.1355,173.26,173.18,12.182]
[1717623489008,7.2,173.2,173.18,12.182]
[1717623490827,2.1355,173.26,173.18,12.182]
[1717623491024,7.2,173.21,173.18,12.182]
[1717623491230,7.2,173.2,173.17,0.17]
[1717623491531,7.2,173.2,173.17,5.773]
[1717623491710,7.2,173.2,173.18,0.17]